bitfinex/quotes_SOLUSD_20260103
["timestamp","ask_amount","ask_price","bid_price","bid_amount"]
[1767479944577,0.58202838,133.48,133.44,7.49400479]
[1767479944789,7.17503365,133.48,133.44,7.49400479]
[1767479947092,7.17503365,133.48,133.43,7.28778845]
[1767479947695,7.17503365,133.48,133.44,6.59300527]
[1767479947870,6.59300527,133.48,133.44,7.28778845]
[1767479948895,6.59300527,133.48,133.44,0.69478318]
[1767479949587,0.099,133.49,133.44,8.18839433]
[1767479949783,6.59300527,133.48,133.44,8.18839433]
[1767479950876,6.69200527,133.49,133.44,14.7813996]
[1767479951477,0.099,133.49,133.44,14.7813996]
[1767479951795,6.59300527,133.48,133.44,8.18839433]
[1767479952096,6.59300527,133.48,133.44,14.7813996]
[1767479954389,6.59300527,133.47,133.42,7.28778845]
[1767479954990,6.59300527,133.46,133.42,0.69478318]
[1767479955501,6.59300527,133.46,133.41,0.69478318]
[1767479955802,14.08590572,133.46,133.41,14.78313383]
[1767479956203,6.59300527,133.46,133.41,14.78313383]
[1767479957006,6.59300527,133.45,133.41,14.78313383]
[1767479957803,6.59300527,133.44,133.4,8.19087914]
[1767479958681,6.59300527,133.43,133.4,8.19087914]
[1767479959105,6.59300527,133.43,133.4,0.69478318]
[1767479959509,7.49288595,133.46,133.4,0.69478318]
[1767479959685,6.59300527,133.44,133.4,0.69478318]
[1767479960007,6.59300527,133.44,133.4,8.19097155]
[1767479962304,6.59300527,133.44,133.4,0.69478318]
[1767479965492,14.0870286,133.44,133.4,0.69478318]
[1767479965692,6.59300527,133.43,133.4,0.69478318]
[1767479965895,6.59300527,133.43,133.38,7.28778845]
[1767479966106,6.59300527,133.42,133.38,0.69478318]
[1767479966408,6.59300527,133.43,133.39,0.69478318]
[1767479966603,2.76229285,133.43,133.39,0.69478318]
[1767479967695,10.25696666,133.43,133.39,0.69478318]
[1767479967894,2.76229285,133.42,133.39,0.69478318]
[1767479971035,2.76229285,133.41,133.39,0.69478318]
[1767479971318,2.76229285,133.41,133.39,0.19478318]
[1767479971518,16.44229285,133.42,133.39,0.19478318]
[1767479972306,2.76229285,133.41,133.36,2.76229285]
[1767479973341,2.76229285,133.41,133.24,37.55317082]
[1767479973342,5.5245857,133.37,133.17,67.86752283]
[1767479973503,29.20744461,133.29,133.22,2.76229285]
[1767479973822,2.76229285,133.35,133.14,2.76229285]
[1767479973823,11.11243122,133.38,133.28,5.5245857]
[1767479974042,7.79638249,133.37,133.32,2.76229285]
[1767479974242,5.03408964,133.36,133.31,3.45272494]
[1767479974412,5.03408964,133.36,133.32,0.69043209]
[1767479974606,19.1343521,133.36,133.31,6.60159371]
[1767479974908,5.03408964,133.35,133.31,6.60159371]
[1767479976126,5.03408964,133.35,133.3,6.60159371]
[1767479976731,5.03408964,133.35,133.31,0.69043209]
[1767479977943,5.03408964,133.35,133.31,7.2920258]
[1767479978109,6.72399409,133.32,133.27,0.69043209]
[1767479978425,6.60159371,133.3,133.27,0.69043209]
[1767479978726,6.7293836,133.3,133.25,0.69043209]
[1767479979030,6.60159371,133.3,133.25,0.69043209]
[1767479980516,6.60159371,133.29,133.25,0.69043209]
[1767479982438,6.71849515,133.29,133.25,0.69043209]
[1767479982637,6.60159371,133.28,133.23,20.9720258]
[1767479982816,6.60159371,133.28,133.24,0.69043209]
[1767479983009,6.71849515,133.29,133.24,7.2920258]
[1767479983208,6.60159371,133.3,133.25,0.69043209]
[1767479983930,21.85938535,133.31,133.25,0.69043209]
[1767479984132,6.60159371,133.29,133.25,0.69043209]
[1767479988237,7.50136826,133.31,133.25,0.69043209]
[1767479988238,6.60159371,133.31,133.26,0.69043209]
[1767479989335,6.60159371,133.31,133.27,0.69043209]
[1767479989539,6.60159371,133.3,133.27,0.69043209]
[1767479993954,6.60159371,133.29,133.27,0.69043209]
[1767479994548,2.76766672,133.29,133.27,0.69043209]
[1767479996426,6.9720911,133.35,133.29,1e-08]
[1767479996631,3.44568381,133.31,133.27,7.50346932]
[1767479997339,3.44568381,133.31,133.26,7.50412726]
[1767479997538,2.76766672,133.29,133.26,7.50412726]
[1767479998333,3.44568381,133.3,133.26,7.50412726]
[1767479998533,2.76766672,133.29,133.26,8.19455935]
[1767480000256,3.44568381,133.3,133.26,8.19455935]
[1767480000455,3.47240549,133.29,133.24,10.96601548]
[1767480000631,3.47240549,133.28,133.24,8.19834876]
[1767480000832,2.76766672,133.25,133.22,8.19938675]
[1767480001251,0.70473877,133.26,133.22,8.19938675]
[1767480001452,2.76766672,133.25,133.22,0.69352927]
[1767480002636,2.76766672,133.24,133.2,21.88100166]
[1767480002939,0.70473877,133.28,133.23,0.69352927]
[1767480003139,8.46012841,133.27,133.22,0.69352927]
[1767480003452,3.47240549,133.27,133.22,0.69352927]
[1767480004159,0.70473877,133.26,133.22,7.50638042]
[1767480004457,0.70473877,133.26,133.22,9.27812501]
[1767480004655,1.77174459,133.29,133.23,2.46527386]
[1767480004963,1.77174459,133.29,133.24,0.69352927]
[1767480005338,6.76100532,133.28,133.24,0.69352927]
[1767480005662,1.77174459,133.28,133.24,8.19862812]
[1767480006039,1.77174459,133.28,133.25,0.69352927]
[1767480007259,2.47648336,133.29,133.25,8.19801212]
[1767480007564,4.9949738,133.28,133.25,8.19801212]
[1767480007756,4.9949738,133.28,133.26,0.69352927]
[1767480008065,1.77174459,133.3,133.26,0.69352927]
[1767480008259,4.9945952,133.29,133.26,0.69352927]
[1767480009560,4.9945952,133.29,133.26,8.19753618]
[1767480009756,4.9945952,133.29,133.27,0.69352927]
[1767480009954,1.77174459,133.31,133.27,0.69352927]
[1767480010156,5.00073355,133.3,133.27,0.69352927]
[1767480010349,5.00073355,133.29,133.27,0.69352927]
[1767480010549,2.47648336,133.31,133.27,0.69352927]
[1767480010749,5.0041089,133.3,133.27,0.69352927]
[1767480011941,5.0041089,133.3,133.27,8.19691385]
[1767480012335,5.0041089,133.29,133.27,8.19691385]
[1767480012539,2.47648336,133.31,133.27,8.19691385]
[1767480012737,2.47648336,133.31,133.27,0.69352927]
[1767480012738,6.78223219,133.3,133.27,0.69352927]
[1767480012940,5.0104876,133.29,133.27,0.69352927]
[1767480013951,5.0104876,133.29,133.26,0.69352927]
[1767480015366,5.0104876,133.28,133.27,7.50356419]
[1767480015565,0.70473877,133.3,133.27,8.19709346]
[1767480016077,1.77174459,133.31,133.27,8.19709346]
[1767480016252,2.47648336,133.31,133.27,8.19709346]
[1767480017474,2.47648336,133.32,133.28,0.69352927]
[1767480018262,0.70473877,133.31,133.26,28.03619002]
[1767480018974,0.70473877,133.31,133.26,26.26444543]
[1767480019147,0.70473877,133.31,133.26,28.03619002]
[1767480020373,0.70473877,133.31,133.28,7.5030012]
[1767480020555,0.70473877,133.28,133.24,0.69352927]
[1767480020953,0.70473877,133.28,133.24,2.46527386]
[1767480021973,0.70473877,133.28,133.25,7.50466621]
[1767480022169,0.70473877,133.28,133.24,0.69352927]
[1767480022360,0.70473877,133.28,133.24,2.46527386]
[1767480022556,0.70473877,133.28,133.24,0.69352927]
[1767480022764,0.70473877,133.28,133.24,2.46527386]
[1767480023151,0.70473877,133.28,133.24,9.9703861]
[1767480023679,2.47648336,133.3,133.25,0.69352927]
[1767480024277,0.70473877,133.29,133.25,0.69352927]
[1767480024454,0.70473877,133.29,133.25,8.19807437]
[1767480027486,5.05064764,133.28,133.25,8.19807437]
[1767480027689,5.05064764,133.27,133.25,8.19807437]
[1767480027983,0.70473877,133.28,133.24,7.50525367]
[1767480028185,5.05065544,133.27,133.24,9.27699826]
[1767480028387,0.70473877,133.28,133.24,9.27699826]
[1767480028564,5.05079041,133.27,133.24,9.97052753]
[1767480028765,0.70473877,133.28,133.24,9.97052753]
[1767480028965,5.05079041,133.27,133.24,8.19878294]
[1767480029177,2.47648336,133.28,133.24,8.19878294]
[1767480029369,5.05079041,133.27,133.24,8.19878294]
[1767480029568,2.47648336,133.28,133.24,8.19878294]
[1767480029782,5.05093199,133.27,133.24,8.19878294]
[1767480029960,2.47648336,133.28,133.24,8.19878294]
[1767480030160,5.05093199,133.27,133.24,8.19878294]
[1767480030361,2.47648336,133.28,133.24,8.19878294]
[1767480030661,5.05096722,133.27,133.24,8.19878294]
[1767480030957,2.47648336,133.28,133.24,8.19878294]
[1767480031163,5.05084001,133.27,133.24,8.19878294]
[1767480031768,5.05084001,133.27,133.24,7.50525367]
[1767480031769,0.66712613,133.27,133.24,7.50525367]
[1767480032477,0.66712613,133.27,133.24,8.1849156]
[1767480033178,17.70808257,133.31,133.25,0.67966193]
[1767480033179,0.66712613,133.3,133.25,0.67966193]
[1767480033364,7.49015449,133.29,133.25,0.67966193]
[1767480033561,5.7184099,133.28,133.25,0.67966193]
[1767480033772,0.66712613,133.28,133.25,0.67966193]
[1767480034990,0.66712613,133.28,133.25,8.18410661]
[1767480035168,5.05100078,133.27,133.25,8.18410661]
[1767480035668,5.05100078,133.27,133.25,7.50444468]
[1767480044987,0.66712613,133.28,133.25,7.50444468]
[1767480045196,5.05151763,133.27,133.25,7.50444468]
[1767480047397,0.66712613,133.28,133.25,7.50444468]
[1767480047597,5.05421171,133.27,133.24,26.26838786]
[1767480047778,1.77174459,133.29,133.24,26.26838786]
[1767480047978,5.05421171,133.28,133.24,26.26838786]
[1767480048281,5.05421171,133.27,133.24,26.26838786]
[1767480048480,1.77174459,133.29,133.25,0.67966193]
[1767480048682,5.05564919,133.28,133.25,8.18399983]
[1767480048997,5.05564919,133.27,133.25,8.18399983]
[1767480049199,1.77174459,133.3,133.25,8.18399983]
[1767480049398,5.0568358,133.29,133.25,8.18399983]
[1767480049600,5.72396193,133.28,133.25,8.18399983]
[1767480049796,5.0568358,133.27,133.25,8.18399983]
[1767480049977,0.66712613,133.28,133.25,8.18399983]
[1767480050175,5.05683899,133.27,133.25,8.18399983]
[1767480050378,0.66712613,133.28,133.25,8.18399983]
[1767480050579,5.05743969,133.27,133.25,8.18399983]
[1767480050781,0.66712613,133.28,133.24,18.76313419]
[1767480050782,0.66712613,133.3,133.26,0.67966193]
[1767480050987,4.57961777,133.31,133.24,28.04013245]
[1767480051192,0.66712613,133.31,133.24,28.04013245]
[1767480051499,2.43887072,133.31,133.24,28.04013245]
[1767480051984,2.43887072,133.31,133.25,1.77174459]
[1767480052182,2.43887072,133.31,133.26,7.50412726]
[1767480052503,2.43887072,133.31,133.26,7.44412726]
[1767480052881,2.43887072,133.31,133.27,0.67966193]
[1767480053303,2.43887072,133.31,133.28,0.67966193]
[1767480056001,4.57786897,133.34,133.29,7.50243829]
[1767480056200,0.66712613,133.32,133.29,7.44243829]
[1767480057117,0.66712613,133.32,133.28,7.5030012]
[1767480057411,0.66712613,133.32,133.28,9.27474579]
[1767480057911,0.66712613,133.32,133.29,1.77174459]
[1767480058691,1.77174459,133.35,133.3,7.50187546]
[1767480058692,0.66712613,133.35,133.3,7.50187546]
[1767480059004,0.66712613,133.34,133.3,9.27362005]
[1767480059786,0.66712613,133.35,133.3,9.27362005]
[1767480061116,0.66712613,133.35,133.3,28.02830872]
[1767480061702,1.77174459,133.34,133.3,7.50187546]
[1767480061903,0.68188339,133.35,133.3,9.27362005]
[1767480062109,0.68188339,133.34,133.3,7.50187546]
[1767480062809,2.45362798,133.32,133.29,21.20227414]
[1767480063008,5.72668407,133.31,133.28,7.502866]
[1767480063313,0.68188339,133.3,133.28,7.502866]
[1767480063998,0.68188339,133.3,133.26,26.26400045]
[1767480064299,0.68188339,133.3,133.26,28.03574504]
[1767480064506,0.68188339,133.3,133.26,26.26400045]
[1767480065824,0.68188339,133.3,133.26,29.03058165]
[1767480066925,0.68188339,133.31,133.26,29.03058165]
[1767480068328,0.68188339,133.29,133.26,26.26400045]
[1767480068806,0.68188339,133.29,133.26,7.50412726]
[1767480069219,0.68188339,133.28,133.25,7.50448916]
[1767480070330,0.68188339,133.27,133.25,7.50448916]
[1767480070907,0.68188339,133.27,133.24,7.50525367]
[1767480071113,0.68188339,133.26,133.23,13.68]
[1767480071315,0.68188339,133.25,133.23,13.68]
[1767480071528,0.68188339,133.25,133.21,16.4465812]
[1767480071913,0.68188339,133.25,133.21,13.68]
[1767480072834,0.68188339,133.25,133.22,7.50585075]
[1767480074730,7.50311639,133.28,133.22,7.50585075]
[1767480074731,3.44846459,133.27,133.22,7.50585075]
[1767480074931,5.04465583,133.26,133.22,7.50585075]
[1767480075327,0.68188339,133.26,133.22,7.50585075]
[1767480075933,3.44846459,133.23,133.2,15.07677731]
[1767480076148,3.44846459,133.23,133.2,7.50729889]
[1767480077233,0.68188339,133.22,133.19,7.50807117]
[1767480077622,0.6518834,133.22,133.19,7.50807117]
[1767480077825,0.62188341,133.22,133.19,7.50807117]
[1767480079619,0.59188342,133.22,133.19,7.50807117]
[1767480080641,6.29407401,133.27,133.19,7.50807117]
[1767480080642,2.7665812,133.21,133.19,7.50807117]
[1767480081240,2.7665812,133.22,133.19,7.50807117]
[1767480081539,0.68188339,133.21,133.19,7.50807117]
[1767480082622,3.44846459,133.21,133.17,7.59875288]
[1767480084141,0.68188339,133.2,133.17,7.50875291]
[1767480084839,0.68188339,133.22,133.18,2.7665812]
[1767480085040,2.7665812,133.24,133.19,3.48128975]
[1767480085239,2.7665812,133.24,133.2,0.71470855]
[1767480086220,2.7665812,133.24,133.21,7.50694392]
[1767480087141,3.44846459,133.24,133.21,7.50694392]
[1767480087847,0.68188339,133.23,133.21,7.50694392]
[1767480093324,0.68188339,133.23,133.2,7.5075075]
[1767480093846,3.44846459,133.23,133.2,7.5075075]
[1767480094541,0.68188339,133.23,133.2,7.5075075]
[1767480094723,0.72185893,133.22,133.17,0.711643]
[1767480094919,0.72185893,133.21,133.19,7.50791734]
[1767480096644,0.72185893,133.21,133.17,26.99371434]
[1767480096845,3.48844013,133.2,133.17,8.22084176]
[1767480097035,0.72185893,133.2,133.17,8.22084176]
[1767480098625,0.72185893,133.19,133.17,7.50919876]
[1767480100543,0.69185893,133.19,133.17,7.50919876]
[1767480101139,3.45844013,133.19,133.16,7.50963774]
[1767480101947,2.7665812,133.19,133.16,7.50963774]
[1767480102550,0.72185893,133.18,133.16,7.50963774]
[1767480102856,0.69185893,133.18,133.16,7.50963774]
[1767480104234,0.69185893,133.18,133.15,7.51032669]
[1767480104756,0.72185893,133.17,133.15,7.51032669]
[1767480104949,0.69185893,133.17,133.15,7.51032669]
[1767480106952,3.48844013,133.18,133.15,7.51032669]
[1767480107265,3.48844013,133.17,133.14,21.21070736]
[1767480107433,0.72185893,133.16,133.14,7.51070736]
[1767480110654,0.72185893,133.16,133.13,8.2228791]
[1767480110837,3.48844013,133.16,133.13,8.2228791]
[1767480111237,0.72185893,133.16,133.13,7.5112361]
[1767480111444,0.72185893,133.15,133.13,7.5112361]
[1767480111642,0.69185893,133.15,133.13,7.5112361]
[1767480112340,2.7665812,133.15,133.12,7.51193114]
[1767480113640,3.48844013,133.15,133.12,7.51193114]
[1767480114156,3.45844013,133.15,133.12,7.51193114]
[1767480115360,3.48844013,133.17,133.13,0.711643]
[1767480115558,2.7665812,133.18,133.14,0.711643]
[1767480115758,3.48844013,133.18,133.14,0.711643]
[1767480115937,0.72185893,133.17,133.14,0.711643]
[1767480117771,0.72185893,133.17,133.14,8.22215975]
[1767480117944,3.48844013,133.19,133.15,0.711643]
[1767480118549,0.72185893,133.18,133.15,0.711643]
[1767480118765,0.72185893,133.18,133.14,10.27709795]
[1767480118970,0.72185893,133.18,133.14,10.98874095]
[1767480119271,0.72185893,133.18,133.14,29.76596792]
[1767480121047,0.72185893,133.18,133.15,8.17753368]
[1767480121252,0.66617405,133.2,133.17,3.43428224]
[1767480121651,0.66617405,133.21,133.17,3.43428224]
[1767480123370,0.66617405,133.21,133.18,7.50863493]
[1767480124960,0.66617405,133.21,133.18,8.17633597]
[1767480125557,0.66617405,133.21,133.18,9.94950042]
[1767480125876,0.66617405,133.21,133.18,8.17633597]
[1767480128355,0.66617405,133.22,133.18,8.17633597]
[1767480128555,0.66617405,133.22,133.18,9.94950042]
[1767480128772,0.66617405,133.22,133.18,28.72108774]
[1767480130163,0.66617405,133.22,133.19,2.44086549]
[1767480131670,0.66617405,133.22,133.2,7.5075075]
[1767480132665,0.66617405,133.24,133.2,8.17520854]
[1767480135880,0.66617405,133.24,133.2,7.5075075]
[1767480138384,0.66617405,133.24,133.2,8.17520854]
[1767480138970,5.03783834,133.23,133.2,8.17520854]
[1767480139290,5.70401239,133.23,133.2,8.17520854]
[1767480139467,0.66617405,133.23,133.2,8.17520854]
[1767480147397,2.4393385,133.25,133.21,0.66770104]
[1767480147794,0.66617405,133.24,133.21,0.66770104]
[1767480147998,0.66617405,133.24,133.2,8.17520854]
[1767480148788,0.66617405,133.24,133.21,7.50687233]
[1767480154501,0.66617405,133.24,133.21,0.68234623]
[1767480155708,0.66617405,133.24,133.21,8.18922406]
[1767480155910,0.66617405,133.24,133.21,7.50687783]
[1767480157584,0.66617405,133.24,133.21,0.68234623]
[1767480158513,0.66617405,133.24,133.21,8.18922364]
[1767480160107,5.04632586,133.23,133.2,7.5075075]
[1767480160488,1.77316445,133.25,133.2,7.5075075]
[1767480160688,5.04632906,133.24,133.21,0.68234623]
[1767480161212,5.04632906,133.23,133.21,8.18902119]
[1767480161392,1.77316445,133.25,133.21,8.18902119]
[1767480161588,5.04831699,133.24,133.21,8.18902119]
[1767480161789,5.04831699,133.23,133.21,8.18902119]
[1767480161989,1.77316445,133.25,133.21,8.18902119]
[1767480162208,5.04831708,133.24,133.21,8.18902119]
[1767480162516,5.04831708,133.23,133.21,8.18902119]
[1767480163126,0.67998253,133.24,133.21,8.18902119]
[1767480163299,5.05238876,133.23,133.21,8.18902119]
[1767480163500,0.67998253,133.24,133.21,8.18902119]
[1767480163709,5.05238876,133.23,133.21,8.18902119]
[1767480163902,0.67998253,133.24,133.21,8.18902119]
[1767480164219,5.05238876,133.23,133.21,8.18902119]
[1767480164425,0.67998253,133.24,133.21,8.18902119]
[1767480164614,5.05446961,133.23,133.21,8.18902119]
[1767480164800,0.67998253,133.24,133.21,8.18902119]
[1767480165000,5.05408969,133.23,133.21,8.18902119]
[1767480166719,2.45314698,133.24,133.21,8.18902119]
[1767480166919,5.05560151,133.23,133.21,8.18902119]
[1767480167123,2.45314698,133.24,133.21,8.18902119]
[1767480167306,5.05610764,133.23,133.21,8.18902119]
[1767480167507,2.45314698,133.24,133.21,8.18902119]
[1767480167728,5.05610604,133.23,133.21,8.18902119]
[1767480167932,2.45314698,133.24,133.21,8.18902119]
[1767480168106,5.05610764,133.23,133.21,8.18902119]
[1767480168307,2.45314698,133.24,133.21,8.18902119]
[1767480168506,5.05654425,133.23,133.2,26.27612018]
[1767480168707,1.77316445,133.24,133.2,26.27612018]
[1767480168914,5.05654425,133.23,133.2,26.27612018]
[1767480169121,1.77316445,133.24,133.2,26.27612018]
[1767480169424,5.05707504,133.23,133.21,0.68234623]
[1767480169614,1.77316445,133.25,133.21,0.68234623]
[1767480169929,5.05707184,133.24,133.21,0.68234623]
[1767480170114,5.05707184,133.23,133.21,0.68234623]
[1767480170423,1.77316445,133.25,133.21,0.68234623]
[1767480170625,5.70587085,133.24,133.21,8.18906466]
[1767480170823,5.05771927,133.23,133.21,8.18906466]
[1767480171023,0.64815158,133.24,133.21,8.18906466]
[1767480171330,5.0581552,133.23,133.21,8.18906466]
[1767480171515,2.42131603,133.24,133.21,8.18906466]
[1767480171714,5.0581552,133.23,133.21,8.18906466]
[1767480171916,2.42131603,133.24,133.21,8.18906466]
[1767480172108,5.0581552,133.23,133.21,8.18906466]
[1767480172311,0.64815158,133.24,133.21,8.18906466]
[1767480172512,5.05868848,133.23,133.21,8.18906466]
[1767480172808,0.64815158,133.24,133.21,8.18906466]
[1767480173002,1.77316445,133.25,133.21,8.18906466]
[1767480173003,2.42131603,133.25,133.21,8.18906466]
[1767480175127,0.64815158,133.25,133.21,8.18906466]
[1767480180434,0.64815158,133.25,133.2,26.27612018]
[1767480183039,0.099,133.24,133.2,26.27612018]
[1767480184140,6.91953101,133.25,133.22,0.68446197]
[1767480184320,6.91953101,133.25,133.21,7.50653853]
[1767480184935,0.72094432,133.24,133.21,7.50653853]
[1767480185130,5.06139998,133.23,133.2,26.27612018]
[1767480185344,0.72094432,133.24,133.2,26.27612018]
[1767480186348,0.72094432,133.24,133.21,8.19100015]
[1767480193634,0.72094432,133.24,133.22,0.68446197]
[1767480194855,0.72094432,133.24,133.21,7.50653818]
[1767480196333,0.72094432,133.24,133.2,26.27612018]
[1767480196945,0.72094432,133.24,133.21,0.68446197]
[1767480197246,0.7207804,133.22,133.18,0.68446197]
[1767480197456,5.76716524,133.21,133.18,0.68446197]
[1767480197755,5.06245043,133.2,133.18,0.68446197]
[1767480197962,3.47424391,133.21,133.18,0.68446197]
[1767480198154,5.06265603,133.2,133.18,8.19294534]
[1767480200160,3.47424391,133.21,133.18,8.19294534]
[1767480200550,5.0600545,133.2,133.18,8.19294534]
[1767480200856,3.47424391,133.21,133.18,8.19294534]
[1767480201373,0.70471481,133.21,133.18,8.19294534]
[1767480202236,3.49014885,133.2,133.17,8.19345015]
[1767480203045,3.49014885,133.2,133.18,0.68446197]
[1767480203435,2.7695291,133.2,133.18,0.68446197]
[1767480203962,3.49047342,133.21,133.18,0.68446197]
[1767480205663,0.70455253,133.2,133.18,0.68446197]
[1767480205834,2.7695291,133.2,133.16,8.19382999]
[1767480206846,2.7695291,133.2,133.16,7.50936802]
[1767480207050,2.7695291,133.19,133.15,8.19462067]
[1767480207346,2.73952911,133.18,133.15,8.19462067]
[1767480207757,3.46047343,133.18,133.15,8.19462067]
[1767480207964,0.72094432,133.18,133.15,8.19462067]
[1767480209375,0.72094432,133.18,133.16,0.68446197]
[1767480209774,3.49047342,133.19,133.16,0.68446197]
[1767480210477,0.67485254,133.18,133.15,8.20583863]
[1767480212476,0.67485254,133.18,133.15,7.5101587]
[1767480212773,0.67485254,133.18,133.15,6.7851587]
[1767480215673,0.67485254,133.18,133.15,7.45114349]
[1767480216379,2.7695291,133.2,133.16,0.66598479]
[1767480217457,0.57761356,133.21,133.16,0.66598479]
[1767480217681,2.7695291,133.2,133.16,0.66598479]
[1767480217982,3.34714266,133.21,133.16,0.66598479]
[1767480220283,3.34714266,133.21,133.17,8.17518355]
[1767480222979,107.5695291,133.23,133.19,0.66598479]
[1767480223281,0.57761356,133.24,133.19,0.66598479]
[1767480223282,3.34714266,133.24,133.19,0.66598479]
[1767480223785,3.34714266,133.24,133.2,0.66598479]
[1767480223988,2.7695291,133.24,133.2,0.66598479]
[1767480224287,2.7695291,133.24,133.19,0.66598479]
[1767480225090,2.7695291,133.24,133.2,8.17349229]
[1767480225591,2.7695291,133.24,133.21,0.66598479]
[1767480225791,2.7695291,133.25,133.21,0.66598479]
[1767480226392,134.35405512,133.27,133.21,0.66598479]
[1767480226393,2.7695291,133.26,133.21,0.66598479]
[1767480226594,5.04129881,133.25,133.21,0.66598479]
[1767480226989,2.7695291,133.26,133.21,0.66598479]
[1767480227196,7.81057635,133.25,133.23,0.66598479]
[1767480227497,2.7695291,133.25,133.23,0.66598479]
[1767480227797,107.5695291,133.27,133.23,0.66598479]
[1767480228386,2.7695291,133.26,133.24,0.66598479]
[1767480228900,107.5695291,133.27,133.24,0.66598479]
[1767480229073,104.8,133.27,133.24,0.66598479]
[1767480229275,107.5695291,133.27,133.24,0.66598479]
[1767480230007,21.2029314,133.29,133.24,0.66598479]
[1767480230292,2.7695291,133.27,133.24,0.66598479]
[1767480230988,2.7695291,133.27,133.24,8.17117431]
[1767480232298,2.7695291,133.27,133.24,0.66598479]
[1767480233194,7.5030639,133.28,133.24,0.66598479]
[1767480233493,7.80519609,133.27,133.24,0.66598479]
[1767480233701,2.7695291,133.26,133.22,8.14490972]
[1767480234082,2.7695291,133.25,133.22,8.14490972]
[1767480234292,2.7695291,133.25,133.21,21.20676805]
[1767480234985,2.7695291,133.25,133.2,21.87338808]
[1767480235406,2.7695291,133.25,133.21,0.66598479]
[1767480235591,2.7695291,133.24,133.21,0.66598479]
[1767480235979,2.7695291,133.23,133.21,0.66598479]
[1767480236200,7.50454599,133.26,133.21,0.66598479]
[1767480236387,2.7695291,133.23,133.21,0.66598479]
[1767480237002,2.7695291,133.24,133.21,0.66598479]
[1767480239515,7.50454599,133.26,133.21,0.66598479]
[1767480239718,2.7695291,133.24,133.21,0.66598479]
[1767480240602,2.7695291,133.24,133.21,0.65371334]
[1767480240802,7.50486878,133.25,133.21,0.65371334]
[1767480241108,7.80686977,133.24,133.21,0.65371334]
[1767480241417,2.7695291,133.24,133.21,0.65371334]
[1767480242716,2.7695291,133.24,133.2,21.86111663]
[1767480243020,2.7695291,133.24,133.2,8.16111663]
[1767480243206,7.80704701,133.23,133.2,0.65371334]
[1767480243517,2.7695291,133.22,133.2,0.65371334]
[1767480243911,2.7695291,133.22,133.19,0.65371334]
[1767480248528,1.77313888,133.22,133.19,0.65371334]
[1767480251930,1.77313888,133.22,133.18,8.16197543]
[1767480252132,1.77313888,133.22,133.19,0.65371334]
[1767480254152,1.77313888,133.22,133.17,13.7]
[1767480254153,1.77313888,133.21,133.17,14.35371334]
[1767480254938,1.77313888,133.19,133.16,0.65371334]
[1767480255136,1.77313888,133.19,133.14,21.86442197]
[1767480255337,1.77313888,133.18,133.14,21.86442197]
[1767480256043,1.77313888,133.18,133.15,0.65371334]
[1767480257119,9.28179556,133.18,133.15,0.65371334]
[1767480257318,1.77313888,133.17,133.15,0.65371334]
[1767480257546,1.77313888,133.17,133.14,0.65371334]
[1767480258850,1.77313888,133.16,133.13,0.65371334]
[1767480260824,1.77313888,133.15,133.12,0.65371334]
[1767480261142,1.77313888,133.14,133.11,7.51251188]
[1767480261348,1.77313888,133.14,133.12,0.65371334]
[1767480262142,1.74313889,133.14,133.12,0.65371334]
[1767480264147,1.77313888,133.13,133.09,7.51358379]
[1767480264328,1.77313888,133.13,133.09,1e-08]
[1767480264523,1.77313888,133.12,133.09,1e-08]
[1767480268550,1.77313888,133.12,133.08,7.51415593]
[1767480270072,1.77313888,133.12,133.08,8.16960161]
[1767480270772,1.77313888,133.12,133.09,0.65544568]
[1767480270958,9.28519623,133.12,133.09,0.65544568]
[1767480271149,1.77313888,133.11,133.09,0.65544568]
[1767480271952,7.51089079,133.14,133.09,0.65544568]
[1767480272151,1.77313888,133.12,133.09,0.65544568]
[1767480273046,1.77313888,133.11,133.09,0.65544568]
[1767480274357,1.77313888,133.1,133.06,7.51524094]
[1767480274548,1.77313888,133.1,133.05,21.21580346]
[1767480274878,1.77313888,133.09,133.05,21.21580346]
[1767480275576,2.42775838,133.09,133.05,21.21580346]
[1767480275758,1.77313888,133.08,133.01,18.79459556]
[1767480275956,1.77313888,133.08,133.02,13.7]
[1767480276160,1.77313888,133.07,133.02,13.7]
[1767480276358,1.77313888,133.08,133.03,0.71741082]
[1767480276676,1.27313888,133.08,133.05,0.71741082]
[1767480277147,2.4333707,133.07,133.03,8.2341399]
[1767480277574,2.4333707,133.07,133.04,0.71741082]
[1767480279256,9.94833989,133.07,133.04,0.71741082]
[1767480279472,0.66023182,133.07,133.04,0.71741082]
[1767480279676,2.4333707,133.07,133.04,0.71741082]
[1767480280558,1.77313888,133.07,133.04,0.71741082]
[1767480280758,0.099,133.09,133.06,0.71741082]
[1767480280958,1.77313888,133.08,133.06,0.71741082]
[1767480281157,1.77313888,133.08,133.05,0.71741082]
[1767480281462,1.87213888,133.09,133.05,0.71741082]
[1767480281983,1.77313888,133.09,133.05,0.71741082]
[1767480282288,2.48194113,133.06,132.99,1.77313888]
[1767480282467,1.77313888,133.05,132.99,1.77313888]
[1767480282881,1.77313888,133.06,133.0,26.31578947]
[1767480283600,1.77313888,133.06,133.01,13.7]
[1767480283989,1.77313888,133.06,133.02,7.51766651]